{"text_format":"1","workbook":"xlsx","n_sheets":9,"sheets":["INSTRUCTIONS","Themes and Keywords","Theme Base","Top Themes","Theme Calculation","Enter Keyword list","Report","Remove Common Words","Sheet6"],"not_rendered":{"charts":0,"images":0,"macros":1,"external_links":0,"defined_names":3,"comments":0,"pivot_tables":0},"unopened":[],"bounds":{"document_bytes":16777216,"sheet_cells":100000,"rows_first":2000,"rows_last":500,"rows_between":2000,"halvings":0,"cell_chars":16384,"cell_head_chars":4096},"cells_cut":0,"cells_raw":0,"read":"whole","date_system":"1900"}

{"sheet":"INSTRUCTIONS","index":0,"n_rows":9,"n_cols":1,"rows_kept":9,"cut":false,"hidden":false,"merged":[]}
[]
["INSTRUCTIONS: "]
["1. Dodaj słowa kluczowe do zakładki : \"Enter Keyword List\". Duplikaty są usuwane automatycznie makrem."]
["2. Wybierz makro, które chcesz wywołać:"]
["2.a. Makro: Select Number of Themes: Wybierz liczbę grup, jakie chcesz aby narzędzie utworzyło. Liczba ta powinna być w przedziale 5%-50% ilości słów kluczowych. (MIN=3/MAX=100)"]
["2.b. Makro:  Select Minimum Number of Keywords per theme: Wybierz minimalną liczbę słów kluczowych w grupie słów. (MIN=3/MAX=100)"]
["2.C. Makro: Input the themes Manually: Zmodyfikuj grupy po tym jak makro się zatrzyma. Wywołaj dodatkowe makro po tym jak zakończysz. (MIN=3/MAX=100)"]
["3. Zakładka Themes and Keywords Sheet pokazuje Ci wynikowe grupy makra."]
["4. Merge Themes: Możesz połączyć podobne grupy słów kluczowych z wykorzystaniem tego marka. Umieść listy słów w dwóch sąsiadujących kolumnach. Później  zaznacz nazwę kolumny po lewej stronie i wywołaj makro. Zarówno duplikaty w obu kolumnach jak również oryginalne kolumny zostają usunięte."]

{"sheet":"Themes and Keywords","index":1,"n_rows":17,"n_cols":8,"rows_kept":17,"cut":false,"hidden":false,"merged":[]}
[]
[]
[]
["Themes:",null,"All Other","darmowe szablony","strona www","szablon za darmo","szablony za darmo","www za darmo"]
[null,null,"darmowy szablon www","darmowe szablony stron","strona www","szablony stron za darmo","szablony stron za darmo","szablony www za darmo"]
[null,null,"szablon strony gratis","darmowe szablony www","strona www za darmo","szablony www za darmo","szablony www za darmo","szablon www za darmo"]
[null,null,"bezpłatne szablony stron","darmowe szablony","darmowa strona www","szablon strony za darmo","szablony za darmo","strona www za darmo"]
[null,null,"bezpłatny szablon",null,null,"szablony za darmo",null,"www za darmo"]
[null,null,"darmowy szablon",null,null,"szablon za darmo",null,"gdzie www za darmo"]
[null,null,"wzory stron za darmo",null,null,"szablon www za darmo"]
[null,null,"wzory strony"]
[null,null,"wzór strony"]
[null,null,"darmowe www"]
[null,null,"gdzie strony za darmo"]
[null,null,"darmowe stronki"]
[null,null,"darmowa stronka www"]
[null,null,"fajne stronki www"]

{"sheet":"Theme Base","index":2,"n_rows":31,"n_cols":3,"rows_kept":31,"cut":false,"hidden":true,"merged":[]}
["TOTAL"]
[true]
[false]
["keywords","All Other"]
["darmowe szablony stron",{"$f":"IF(COUNTIF($C5:$ALN5, \"\")=1000, A5, \"\")","v":"darmowe szablony stron"},{"$f":"IF(IF(IF(LEN(TRIM(C$4))=0,0,LEN(TRIM(C$4))-LEN(SUBSTITUTE(C$4,\" \",\"\"))+1)=1, IF(COUNT(IFERROR(FIND(C$4, $A5), \"\"))=1, TRUE, FALSE), IF(IF(LEN(TRIM(C$4))=0,0,LEN(TRIM(C$4))-LEN(SUBSTITUTE(C$4,\" \",\"\"))+1)=2, IF(COUNT(IFERROR(FIND(MID(C$4, 1, FIND(\" \", C$4)-1), $A5, 1), \"\"),IFERROR(FIND(MID(C$4,FIND(\" \", C$4)+1,LEN(C$4)-FIND(\" \",C$4)), $A5, 1), \"\"))=2, TRUE,FALSE),IF(COUNT(IFERROR(FIND(MID(C$4, 1, FIND(\" \", C$4)-1), $A5, 1), \"\"),IFERROR(FIND(MID(C$4, FIND(\" \",C$4,1)+1, FIND(\" \", C$4, FIND(\" \", C$4, 1)+1)-FIND(\" \",C$4,1)), $A5, 1), \"\"),IFERROR(FIND(MID(C$4,FIND(\" \",C$4,FIND(\" \",C$4,1)+1)+1,LEN(C$4)-FIND(\" \",C$4,FIND(\" \",C$4,1)+1)),$A5,1),\"\"))=3, TRUE,FALSE)))=TRUE, $A5, \"\")","v":""}]
["darmowe szablony www"]
["szablony stron za darmo"]
["szablony www za darmo"]
["darmowy szablon www"]
["szablon strony gratis"]
["bezpłatne szablony stron"]
["bezpłatny szablon"]
["darmowy szablon"]
["szablon strony za darmo"]
["darmowe szablony"]
["szablony za darmo"]
["szablon za darmo"]
["szablon www za darmo"]
["wzory stron za darmo"]
["wzory strony"]
["wzór strony"]
["strona www"]
["strona www za darmo"]
["darmowa strona www"]
["www za darmo"]
["darmowe www"]
["gdzie www za darmo"]
["gdzie strony za darmo"]
["darmowe stronki"]
["darmowa stronka www"]
["fajne stronki www"]

{"sheet":"Top Themes","index":3,"n_rows":0,"n_cols":0,"rows_kept":0,"cut":false,"hidden":true,"merged":[]}

{"sheet":"Theme Calculation","index":4,"n_rows":31,"n_cols":3,"rows_kept":31,"cut":false,"hidden":true,"merged":[]}
["TOTAL",null,{"$f":"COUNTA(C$5:C$5000)","v":1}]
[true,null,{"$f":"COUNTIF(C$5:C$5000, TRUE)","v":0}]
[false,null,{"$f":"COUNTIF(C$5:C$5000, FALSE)","v":1}]
["keywords"]
["darmowe szablony stron",null,{"$f":"IF(IF(LEN(TRIM(C$4))=0,0,LEN(TRIM(C$4))-LEN(SUBSTITUTE(C$4,\" \",\"\"))+1)=1, IF(COUNT(IFERROR(FIND(C$4, $A5), \"\"))=1, TRUE, FALSE), IF(IF(LEN(TRIM(C$4))=0,0,LEN(TRIM(C$4))-LEN(SUBSTITUTE(C$4,\" \",\"\"))+1)=2, IF(COUNT(IFERROR(FIND(MID(C$4, 1, FIND(\" \", C$4)-1), $A5, 1), \"\"),IFERROR(FIND(MID(C$4,FIND(\" \", C$4)+1,LEN(C$4)-FIND(\" \",C$4)), $A5, 1), \"\"))=2, TRUE,FALSE),IF(COUNT(IFERROR(FIND(MID(C$4, 1, FIND(\" \", C$4)-1), $A5, 1), \"\"),IFERROR(FIND(MID(C$4, FIND(\" \",C$4,1)+1, FIND(\" \", C$4, FIND(\" \", C$4, 1)+1)-FIND(\" \",C$4,1)), $A5, 1), \"\"),IFERROR(FIND(MID(C$4,FIND(\" \",C$4,FIND(\" \",C$4,1)+1)+1,LEN(C$4)-FIND(\" \",C$4,FIND(\" \",C$4,1)+1)),$A5,1),\"\"))=3, TRUE,FALSE)))","v":false}]
["darmowe szablony www"]
["szablony stron za darmo"]
["szablony www za darmo"]
["darmowy szablon www"]
["szablon strony gratis"]
["bezpłatne szablony stron"]
["bezpłatny szablon"]
["darmowy szablon"]
["szablon strony za darmo"]
["darmowe szablony"]
["szablony za darmo"]
["szablon za darmo"]
["szablon www za darmo"]
["wzory stron za darmo"]
["wzory strony"]
["wzór strony"]
["strona www"]
["strona www za darmo"]
["darmowa strona www"]
["www za darmo"]
["darmowe www"]
["gdzie www za darmo"]
["gdzie strony za darmo"]
["darmowe stronki"]
["darmowa stronka www"]
["fajne stronki www"]

{"sheet":"Enter Keyword list","index":5,"n_rows":31,"n_cols":13,"rows_kept":31,"cut":false,"hidden":false,"merged":[[1,11,4,12],[0,2,2,2],[0,0,2,0],[0,11,0,12]]}
["Dodaj listę słów zanim wywołasz makro:",null,"Edytuj tylko dla Manual Themes po tym jak wywołasz makro:",null,null,null,null,null,null,null,null,"Polecane"]
[null,null,null,null,null,null,null,null,null,null,null,"Dodaj do 15 powszechnych słów, które chcesz wykluczyć z nazw grup:"]
[]
["Keyword",null,"ThemeWords"]
["darmowe szablony stron",null,"darmowe szablony stron"]
["darmowe szablony www",null,"darmowe szablony www",null,null,null,null,null,null,null,null,1,"dla"]
["szablony stron za darmo",null,"szablony stron za darmo",null,null,null,null,null,null,null,null,{"$f":"L6+1","v":2},"w"]
["szablony www za darmo",null,"szablony www za darmo",null,null,null,null,null,null,null,null,{"$f":"L7+1","v":3},"i"]
["darmowy szablon www",null,"darmowy szablon www",null,null,null,null,null,null,null,null,4,"na"]
["szablon strony gratis",null,"szablon strony gratis",null,null,null,null,null,null,null,null,5,"z"]
["bezpłatne szablony stron",null,"bezpłatne szablony stron",null,null,null,null,null,null,null,null,6,"to"]
["bezpłatny szablon",null,"bezpłatny szablon",null,null,null,null,null,null,null,null,7]
["darmowy szablon",null,"darmowy szablon",null,null,null,null,null,null,null,null,8]
["szablon strony za darmo",null,"szablon strony za darmo",null,null,null,null,null,null,null,null,9]
["darmowe szablony",null,"darmowe szablony",null,null,null,null,null,null,null,null,10]
["szablony za darmo",null,"szablony za darmo",null,null,null,null,null,null,null,null,11]
["szablon za darmo",null,"szablon za darmo",null,null,null,null,null,null,null,null,12]
["szablon www za darmo",null,"szablon www za darmo",null,null,null,null,null,null,null,null,13,"  "]
["wzory stron za darmo",null,"wzory stron za darmo",null,null,null,null,null,null,null,null,14,"  "]
["wzory strony",null,"wzory strony",null,null,null,null,null,null,null,null,15,"  "]
["wzór strony",null,"wzór strony"]
["strona www",null,"strona www"]
["strona www za darmo",null,"strona www za darmo"]
["darmowa strona www",null,"darmowa strona www"]
["www za darmo",null,"www za darmo"]
["darmowe www",null,"darmowe www"]
["gdzie www za darmo",null,"gdzie www za darmo"]
["gdzie strony za darmo",null,"gdzie strony za darmo"]
["darmowe stronki",null,"darmowe stronki"]
["darmowa stronka www",null,"darmowa stronka www"]
["fajne stronki www",null,"fajne stronki www"]

{"sheet":"Report","index":6,"n_rows":87,"n_cols":5,"rows_kept":87,"cut":false,"hidden":false,"merged":[]}
["Campaign","Ad Group","Keyword","Max Content CPC","Max CPC"]
["Darmowe szablony","darmowe szablony","darmowe szablony stron",0.7,0.6]
["Darmowe szablony","darmowe szablony","darmowe szablony www",0.7,0.6]
["Darmowe szablony","darmowe szablony","darmowe szablony stron",0.7,0.6]
["Darmowe szablony","darmowe szablony","szablony stron za darmo",0.7,0.6]
["Darmowe szablony","darmowe szablony","darmowe szablony www",0.7,0.6]
["Darmowe szablony","darmowe szablony","szablony www za darmo",0.7,0.6]
["Darmowe szablony","darmowe szablony","darmowy szablon www",0.7,0.6]
["Darmowe szablony","darmowe szablony","szablon strony gratis",0.7,0.6]
["Darmowe szablony","darmowe szablony","bezpłatne szablony stron",0.7,0.6]
["Darmowe szablony","darmowe szablony","bezpłatny szablon",0.7,0.6]
["Darmowe szablony","darmowe szablony","darmowy szablon www",0.7,0.6]
["Darmowe szablony","darmowe szablony","darmowy szablon",0.7,0.6]
["Darmowe szablony","darmowe szablony","szablony stron za darmo",0.7,0.6]
["Darmowe szablony","darmowe szablony","szablon strony za darmo",0.7,0.6]
["Darmowe szablony","darmowe szablony","szablony www za darmo",0.7,0.6]
["Darmowe szablony","darmowe szablony","bezpłatne szablony stron",0.7,0.6]
["Darmowe szablony","darmowe szablony","bezpłatny szablon",0.7,0.6]
["Darmowe szablony","darmowe szablony","szablon strony gratis",0.7,0.6]
["Darmowe szablony","darmowe szablony","szablon strony za darmo",0.7,0.6]
["Darmowe szablony","darmowe szablony","darmowy szablon",0.7,0.6]
["Darmowe szablony","darmowe szablony","darmowe szablony",0.7,0.6]
["Darmowe szablony","darmowe szablony","szablony za darmo",0.7,0.6]
["Darmowe szablony","darmowe szablony","szablon za darmo",0.7,0.6]
["Darmowe szablony","darmowe szablony","szablon www za darmo",0.7,0.6]
["Darmowe szablony","darmowe szablony","wzory stron za darmo",0.7,0.6]
["Darmowe szablony","darmowe szablony","wzory strony",0.7,0.6]
["Darmowe szablony","darmowe szablony","wzór strony",0.7,0.6]
["Darmowe szablony","darmowe szablony","strona www",0.7,0.6]
["Darmowe szablony","darmowe szablony","strona www za darmo",0.7,0.6]
["Darmowe szablony","darmowe szablony","darmowa strona www",0.7,0.6]
["Darmowe szablony","darmowe szablony","www za darmo",0.7,0.6]
["Darmowe szablony","darmowe szablony","darmowe www",0.7,0.6]
["Darmowe szablony","darmowe szablony","gdzie www za darmo",0.7,0.6]
["Darmowe szablony","darmowe szablony","gdzie strony za darmo",0.7,0.6]
["Darmowe szablony","darmowe szablony","darmowe stronki",0.7,0.6]
["Darmowe szablony","darmowe szablony","darmowa stronka www",0.7,0.6]
["Darmowe szablony","darmowe szablony","fajne stronki www",0.7,0.6]
[null,null,null,0.7,0.6]
[null,null,null,0.7,0.6]
[null,null,null,0.7,0.6]
[null,null,null,0.7,0.6]
[null,null,null,0.7,0.6]
[null,null,null,0.7,0.6]
[null,null,null,0.7,0.6]
[null,null,null,0.7,0.6]
[null,null,null,0.7,0.6]
[null,null,null,0.7,0.6]
[null,null,null,0.7,0.6]
[null,null,null,0.7,0.6]
[null,null,null,0.7,0.6]
[null,null,null,0.7,0.6]
[null,null,null,0.7,0.6]
[null,null,null,0.7,0.6]
[null,null,null,0.7,0.6]
[null,null,null,0.7,0.6]
[null,null,null,0.7,0.6]
[null,null,null,0.7,0.6]
[null,null,null,0.7,0.6]
[null,null,null,0.7,0.6]
[null,null,null,0.7,0.6]
[null,null,null,0.7,0.6]
[null,null,null,0.7,0.6]
[null,null,null,0.7,0.6]
[null,null,null,0.7,0.6]
[null,null,null,0.7,0.6]
[null,null,null,0.7,0.6]
[null,null,null,0.7,0.6]
[null,null,null,0.7,0.6]
[null,null,null,0.7,0.6]
[null,null,null,0.7,0.6]
[null,null,null,0.7,0.6]
[null,null,null,0.7,0.6]
[null,null,null,0.7,0.6]
[null,null,null,0.7,0.6]
[null,null,null,0.7,0.6]
[null,null,null,0.7,0.6]
[null,null,null,0.7,0.6]
[null,null,null,0.7,0.6]
[null,null,null,0.7,0.6]
[null,null,null,0.7,0.6]
[null,null,null,0.7,0.6]
[null,null,null,0.7,0.6]
[null,null,null,0.7,0.6]
[null,null,null,0.7,0.6]
[null,null,null,0.7,0.6]
[null,null,null,0.7,0.6]

{"sheet":"Remove Common Words","index":7,"n_rows":38,"n_cols":18,"rows_kept":38,"cut":false,"hidden":true,"merged":[]}
["Keywords","add spaces"," for "," in "," and "," on "," the "," of "," at "," is "," an "," a "," this ",null,"  ","  ","  ","trim"]
["darmowe szablony stron",{"$f":"\" \"&A2&\" \"","v":" darmowe szablony stron "},{"$f":"IFERROR(REPLACE(B2, FIND(C$1, B2, 1), LEN(C$1), \" \"), B2)","v":" darmowe szablony stron "},{"$f":"IFERROR(REPLACE(C2, FIND(D$1, C2, 1), LEN(D$1), \" \"), C2)","v":" darmowe szablony stron "}," darmowe szablony stron "," darmowe szablony stron "," darmowe szablony stron "," darmowe szablony stron "," darmowe szablony stron "," darmowe szablony stron "," darmowe szablony stron "," darmowe szablony stron "," darmowe szablony stron ","  darmowe szablony stron "," darmowe szablony stron "," darmowe szablony stron "," darmowe szablony stron ",{"$f":"TRIM(Q2)","v":"darmowe szablony stron"}]
["darmowe szablony www",{"$f":"\" \"&A3&\" \"","v":" darmowe szablony www "},{"$f":"IFERROR(REPLACE(B3, FIND(C$1, B3, 1), LEN(C$1), \" \"), B3)","v":" darmowe szablony www "},{"$f":"IFERROR(REPLACE(C3, FIND(D$1, C3, 1), LEN(D$1), \" \"), C3)","v":" darmowe szablony www "},{"$f":"IFERROR(REPLACE(D3, FIND(E$1, D3, 1), LEN(E$1), \" \"), D3)","v":" darmowe szablony www "},{"$f":"IFERROR(REPLACE(E3, FIND(F$1, E3, 1), LEN(F$1), \" \"), E3)","v":" darmowe szablony www "},{"$f":"IFERROR(REPLACE(F3, FIND(G$1, F3, 1), LEN(G$1), \" \"), F3)","v":" darmowe szablony www "},{"$f":"IFERROR(REPLACE(G3, FIND(H$1, G3, 1), LEN(H$1), \" \"), G3)","v":" darmowe szablony www "},{"$f":"IFERROR(REPLACE(H3, FIND(I$1, H3, 1), LEN(I$1), \" \"), H3)","v":" darmowe szablony www "},{"$f":"IFERROR(REPLACE(I3, FIND(J$1, I3, 1), LEN(J$1), \" \"), I3)","v":" darmowe szablony www "},{"$f":"IFERROR(REPLACE(J3, FIND(K$1, J3, 1), LEN(K$1), \" \"), J3)","v":" darmowe szablony www "},{"$f":"IFERROR(REPLACE(K3, FIND(L$1, K3, 1), LEN(L$1), \" \"), K3)","v":" darmowe szablony www "},{"$f":"IFERROR(REPLACE(L3, FIND(M$1, L3, 1), LEN(M$1), \" \"), L3)","v":" darmowe szablony www "},{"$f":"IFERROR(REPLACE(M3, FIND(N$1, M3, 1), LEN(N$1), \" \"), M3)","v":"  darmowe szablony www "},{"$f":"IFERROR(REPLACE(N3, FIND(O$1, N3, 1), LEN(O$1), \" \"), N3)","v":" darmowe szablony www "},{"$f":"IFERROR(REPLACE(O3, FIND(P$1, O3, 1), LEN(P$1), \" \"), O3)","v":" darmowe szablony www "},{"$f":"IFERROR(REPLACE(P3, FIND(Q$1, P3, 1), LEN(Q$1), \" \"), P3)","v":" darmowe szablony www "},{"$f":"TRIM(Q3)","v":"darmowe szablony www"}]
["darmowe szablony stron"," darmowe szablony stron "," darmowe szablony stron "," darmowe szablony stron "," darmowe szablony stron "," darmowe szablony stron "," darmowe szablony stron "," darmowe szablony stron "," darmowe szablony stron "," darmowe szablony stron "," darmowe szablony stron "," darmowe szablony stron "," darmowe szablony stron ","  darmowe szablony stron "," darmowe szablony stron "," darmowe szablony stron "," darmowe szablony stron ","darmowe szablony stron"]
["szablony stron za darmo"," szablony stron za darmo "," szablony stron za darmo "," szablony stron za darmo "," szablony stron za darmo "," szablony stron za darmo "," szablony stron za darmo "," szablony stron za darmo "," szablony stron za darmo "," szablony stron za darmo "," szablony stron za darmo "," szablony stron za darmo "," szablony stron za darmo ","  szablony stron za darmo "," szablony stron za darmo "," szablony stron za darmo "," szablony stron za darmo ","szablony stron za darmo"]
["darmowe szablony www"," darmowe szablony www "," darmowe szablony www "," darmowe szablony www "," darmowe szablony www "," darmowe szablony www "," darmowe szablony www "," darmowe szablony www "," darmowe szablony www "," darmowe szablony www "," darmowe szablony www "," darmowe szablony www "," darmowe szablony www ","  darmowe szablony www "," darmowe szablony www "," darmowe szablony www "," darmowe szablony www ","darmowe szablony www"]
["szablony www za darmo"," szablony www za darmo "," szablony www za darmo "," szablony www za darmo "," szablony www za darmo "," szablony www za darmo "," szablony www za darmo "," szablony www za darmo "," szablony www za darmo "," szablony www za darmo "," szablony www za darmo "," szablony www za darmo "," szablony www za darmo ","  szablony www za darmo "," szablony www za darmo "," szablony www za darmo "," szablony www za darmo ","szablony www za darmo"]
["darmowy szablon www"," darmowy szablon www "," darmowy szablon www "," darmowy szablon www "," darmowy szablon www "," darmowy szablon www "," darmowy szablon www "," darmowy szablon www "," darmowy szablon www "," darmowy szablon www "," darmowy szablon www "," darmowy szablon www "," darmowy szablon www ","  darmowy szablon www "," darmowy szablon www "," darmowy szablon www "," darmowy szablon www ","darmowy szablon www"]
["szablon strony gratis"," szablon strony gratis "," szablon strony gratis "," szablon strony gratis "," szablon strony gratis "," szablon strony gratis "," szablon strony gratis "," szablon strony gratis "," szablon strony gratis "," szablon strony gratis "," szablon strony gratis "," szablon strony gratis "," szablon strony gratis ","  szablon strony gratis "," szablon strony gratis "," szablon strony gratis "," szablon strony gratis ","szablon strony gratis"]
["bezpłatne szablony stron"," bezpłatne szablony stron "," bezpłatne szablony stron "," bezpłatne szablony stron "," bezpłatne szablony stron "," bezpłatne szablony stron "," bezpłatne szablony stron "," bezpłatne szablony stron "," bezpłatne szablony stron "," bezpłatne szablony stron "," bezpłatne szablony stron "," bezpłatne szablony stron "," bezpłatne szablony stron ","  bezpłatne szablony stron "," bezpłatne szablony stron "," bezpłatne szablony stron "," bezpłatne szablony stron ","bezpłatne szablony stron"]
["bezpłatny szablon"," bezpłatny szablon "," bezpłatny szablon "," bezpłatny szablon "," bezpłatny szablon "," bezpłatny szablon "," bezpłatny szablon "," bezpłatny szablon "," bezpłatny szablon "," bezpłatny szablon "," bezpłatny szablon "," bezpłatny szablon "," bezpłatny szablon ","  bezpłatny szablon "," bezpłatny szablon "," bezpłatny szablon "," bezpłatny szablon ","bezpłatny szablon"]
["darmowy szablon www"," darmowy szablon www "," darmowy szablon www "," darmowy szablon www "," darmowy szablon www "," darmowy szablon www "," darmowy szablon www "," darmowy szablon www "," darmowy szablon www "," darmowy szablon www "," darmowy szablon www "," darmowy szablon www "," darmowy szablon www ","  darmowy szablon www "," darmowy szablon www "," darmowy szablon www "," darmowy szablon www ","darmowy szablon www"]
["darmowy szablon"," darmowy szablon "," darmowy szablon "," darmowy szablon "," darmowy szablon "," darmowy szablon "," darmowy szablon "," darmowy szablon "," darmowy szablon "," darmowy szablon "," darmowy szablon "," darmowy szablon "," darmowy szablon ","  darmowy szablon "," darmowy szablon "," darmowy szablon "," darmowy szablon ","darmowy szablon"]
["szablony stron za darmo"," szablony stron za darmo "," szablony stron za darmo "," szablony stron za darmo "," szablony stron za darmo "," szablony stron za darmo "," szablony stron za darmo "," szablony stron za darmo "," szablony stron za darmo "," szablony stron za darmo "," szablony stron za darmo "," szablony stron za darmo "," szablony stron za darmo ","  szablony stron za darmo "," szablony stron za darmo "," szablony stron za darmo "," szablony stron za darmo ","szablony stron za darmo"]
["szablon strony za darmo"," szablon strony za darmo "," szablon strony za darmo "," szablon strony za darmo "," szablon strony za darmo "," szablon strony za darmo "," szablon strony za darmo "," szablon strony za darmo "," szablon strony za darmo "," szablon strony za darmo "," szablon strony za darmo "," szablon strony za darmo "," szablon strony za darmo ","  szablon strony za darmo "," szablon strony za darmo "," szablon strony za darmo "," szablon strony za darmo ","szablon strony za darmo"]
["szablony www za darmo"," szablony www za darmo "," szablony www za darmo "," szablony www za darmo "," szablony www za darmo "," szablony www za darmo "," szablony www za darmo "," szablony www za darmo "," szablony www za darmo "," szablony www za darmo "," szablony www za darmo "," szablony www za darmo "," szablony www za darmo ","  szablony www za darmo "," szablony www za darmo "," szablony www za darmo "," szablony www za darmo ","szablony www za darmo"]
["bezpłatne szablony stron"," bezpłatne szablony stron "," bezpłatne szablony stron "," bezpłatne szablony stron "," bezpłatne szablony stron "," bezpłatne szablony stron "," bezpłatne szablony stron "," bezpłatne szablony stron "," bezpłatne szablony stron "," bezpłatne szablony stron "," bezpłatne szablony stron "," bezpłatne szablony stron "," bezpłatne szablony stron ","  bezpłatne szablony stron "," bezpłatne szablony stron "," bezpłatne szablony stron "," bezpłatne szablony stron ","bezpłatne szablony stron"]
["bezpłatny szablon"," bezpłatny szablon "," bezpłatny szablon "," bezpłatny szablon "," bezpłatny szablon "," bezpłatny szablon "," bezpłatny szablon "," bezpłatny szablon "," bezpłatny szablon "," bezpłatny szablon "," bezpłatny szablon "," bezpłatny szablon "," bezpłatny szablon ","  bezpłatny szablon "," bezpłatny szablon "," bezpłatny szablon "," bezpłatny szablon ","bezpłatny szablon"]
["szablon strony gratis"," szablon strony gratis "," szablon strony gratis "," szablon strony gratis "," szablon strony gratis "," szablon strony gratis "," szablon strony gratis "," szablon strony gratis "," szablon strony gratis "," szablon strony gratis "," szablon strony gratis "," szablon strony gratis "," szablon strony gratis ","  szablon strony gratis "," szablon strony gratis "," szablon strony gratis "," szablon strony gratis ","szablon strony gratis"]
["szablon strony za darmo"," szablon strony za darmo "," szablon strony za darmo "," szablon strony za darmo "," szablon strony za darmo "," szablon strony za darmo "," szablon strony za darmo "," szablon strony za darmo "," szablon strony za darmo "," szablon strony za darmo "," szablon strony za darmo "," szablon strony za darmo "," szablon strony za darmo ","  szablon strony za darmo "," szablon strony za darmo "," szablon strony za darmo "," szablon strony za darmo ","szablon strony za darmo"]
["darmowy szablon"," darmowy szablon "," darmowy szablon "," darmowy szablon "," darmowy szablon "," darmowy szablon "," darmowy szablon "," darmowy szablon "," darmowy szablon "," darmowy szablon "," darmowy szablon "," darmowy szablon "," darmowy szablon ","  darmowy szablon "," darmowy szablon "," darmowy szablon "," darmowy szablon ","darmowy szablon"]
["darmowe szablony"," darmowe szablony "," darmowe szablony "," darmowe szablony "," darmowe szablony "," darmowe szablony "," darmowe szablony "," darmowe szablony "," darmowe szablony "," darmowe szablony "," darmowe szablony "," darmowe szablony "," darmowe szablony ","  darmowe szablony "," darmowe szablony "," darmowe szablony "," darmowe szablony ","darmowe szablony"]
["szablony za darmo"," szablony za darmo "," szablony za darmo "," szablony za darmo "," szablony za darmo "," szablony za darmo "," szablony za darmo "," szablony za darmo "," szablony za darmo "," szablony za darmo "," szablony za darmo "," szablony za darmo "," szablony za darmo ","  szablony za darmo "," szablony za darmo "," szablony za darmo "," szablony za darmo ","szablony za darmo"]
["szablon za darmo"," szablon za darmo "," szablon za darmo "," szablon za darmo "," szablon za darmo "," szablon za darmo "," szablon za darmo "," szablon za darmo "," szablon za darmo "," szablon za darmo "," szablon za darmo "," szablon za darmo "," szablon za darmo ","  szablon za darmo "," szablon za darmo "," szablon za darmo "," szablon za darmo ","szablon za darmo"]
["szablon www za darmo"," szablon www za darmo "," szablon www za darmo "," szablon www za darmo "," szablon www za darmo "," szablon www za darmo "," szablon www za darmo "," szablon www za darmo "," szablon www za darmo "," szablon www za darmo "," szablon www za darmo "," szablon www za darmo "," szablon www za darmo ","  szablon www za darmo "," szablon www za darmo "," szablon www za darmo "," szablon www za darmo ","szablon www za darmo"]
["wzory stron za darmo"," wzory stron za darmo "," wzory stron za darmo "," wzory stron za darmo "," wzory stron za darmo "," wzory stron za darmo "," wzory stron za darmo "," wzory stron za darmo "," wzory stron za darmo "," wzory stron za darmo "," wzory stron za darmo "," wzory stron za darmo "," wzory stron za darmo ","  wzory stron za darmo "," wzory stron za darmo "," wzory stron za darmo "," wzory stron za darmo ","wzory stron za darmo"]
["wzory strony"," wzory strony "," wzory strony "," wzory strony "," wzory strony "," wzory strony "," wzory strony "," wzory strony "," wzory strony "," wzory strony "," wzory strony "," wzory strony "," wzory strony ","  wzory strony "," wzory strony "," wzory strony "," wzory strony ","wzory strony"]
["wzór strony"," wzór strony "," wzór strony "," wzór strony "," wzór strony "," wzór strony "," wzór strony "," wzór strony "," wzór strony "," wzór strony "," wzór strony "," wzór strony "," wzór strony ","  wzór strony "," wzór strony "," wzór strony "," wzór strony ","wzór strony"]
["strona www"," strona www "," strona www "," strona www "," strona www "," strona www "," strona www "," strona www "," strona www "," strona www "," strona www "," strona www "," strona www ","  strona www "," strona www "," strona www "," strona www ","strona www"]
["strona www za darmo"," strona www za darmo "," strona www za darmo "," strona www za darmo "," strona www za darmo "," strona www za darmo "," strona www za darmo "," strona www za darmo "," strona www za darmo "," strona www za darmo "," strona www za darmo "," strona www za darmo "," strona www za darmo ","  strona www za darmo "," strona www za darmo "," strona www za darmo "," strona www za darmo ","strona www za darmo"]
["darmowa strona www"," darmowa strona www "," darmowa strona www "," darmowa strona www "," darmowa strona www "," darmowa strona www "," darmowa strona www "," darmowa strona www "," darmowa strona www "," darmowa strona www "," darmowa strona www "," darmowa strona www "," darmowa strona www ","  darmowa strona www "," darmowa strona www "," darmowa strona www "," darmowa strona www ","darmowa strona www"]
["www za darmo"," www za darmo "," www za darmo "," www za darmo "," www za darmo "," www za darmo "," www za darmo "," www za darmo "," www za darmo "," www za darmo "," www za darmo "," www za darmo "," www za darmo ","  www za darmo "," www za darmo "," www za darmo "," www za darmo ","www za darmo"]
["darmowe www"," darmowe www "," darmowe www "," darmowe www "," darmowe www "," darmowe www "," darmowe www "," darmowe www "," darmowe www "," darmowe www "," darmowe www "," darmowe www "," darmowe www ","  darmowe www "," darmowe www "," darmowe www "," darmowe www ","darmowe www"]
["gdzie www za darmo"," gdzie www za darmo "," gdzie www za darmo "," gdzie www za darmo "," gdzie www za darmo "," gdzie www za darmo "," gdzie www za darmo "," gdzie www za darmo "," gdzie www za darmo "," gdzie www za darmo "," gdzie www za darmo "," gdzie www za darmo "," gdzie www za darmo ","  gdzie www za darmo "," gdzie www za darmo "," gdzie www za darmo "," gdzie www za darmo ","gdzie www za darmo"]
["gdzie strony za darmo"," gdzie strony za darmo "," gdzie strony za darmo "," gdzie strony za darmo "," gdzie strony za darmo "," gdzie strony za darmo "," gdzie strony za darmo "," gdzie strony za darmo "," gdzie strony za darmo "," gdzie strony za darmo "," gdzie strony za darmo "," gdzie strony za darmo "," gdzie strony za darmo ","  gdzie strony za darmo "," gdzie strony za darmo "," gdzie strony za darmo "," gdzie strony za darmo ","gdzie strony za darmo"]
["darmowe stronki"," darmowe stronki "," darmowe stronki "," darmowe stronki "," darmowe stronki "," darmowe stronki "," darmowe stronki "," darmowe stronki "," darmowe stronki "," darmowe stronki "," darmowe stronki "," darmowe stronki "," darmowe stronki ","  darmowe stronki "," darmowe stronki "," darmowe stronki "," darmowe stronki ","darmowe stronki"]
["darmowa stronka www"," darmowa stronka www "," darmowa stronka www "," darmowa stronka www "," darmowa stronka www "," darmowa stronka www "," darmowa stronka www "," darmowa stronka www "," darmowa stronka www "," darmowa stronka www "," darmowa stronka www "," darmowa stronka www "," darmowa stronka www ","  darmowa stronka www "," darmowa stronka www "," darmowa stronka www "," darmowa stronka www ","darmowa stronka www"]
["fajne stronki www"," fajne stronki www "," fajne stronki www "," fajne stronki www "," fajne stronki www "," fajne stronki www "," fajne stronki www "," fajne stronki www "," fajne stronki www "," fajne stronki www "," fajne stronki www "," fajne stronki www "," fajne stronki www ","  fajne stronki www "," fajne stronki www "," fajne stronki www "," fajne stronki www ","fajne stronki www"]

{"sheet":"Sheet6","index":8,"n_rows":5,"n_cols":7,"rows_kept":5,"cut":false,"hidden":true,"merged":[]}
["text","loop","isempty","\"\"","> \"\"",0,">0"]
[null,"stop loop","loop","loop","stop loop","loop","stop loop"]
["blank","loop","loop","stop loop","loop","loop","stop loop"]
[null,"stop loop"]
["empty","loop","stop loop","stop loop","loop","stop loop","loop"]